[Event "Late-Titled-Tuesday-Blitz-April-23-2024"]
[Site "Chess.com"]
[Date "2024.04.23"]
[Round "4"]
[White "SmirnovTimofey2000"]
[Black "jaramsdal"]
[Result "0-1"]
[WhiteElo "1971"]
[BlackElo "2250"]
[TimeControl "180+1"]
[EndTime "14:41:27 PDT"]
[Termination "jaramsdal won on time"]

1. d4 {[%clk 0:03:00.9]} 1... Nf6 {[%clk 0:02:59.4]} 2. Bf4 {[%clk 0:03:00.8]}
2... d5 {[%clk 0:02:57]} 3. e3 {[%clk 0:03:00.8]} 3... c5 {[%clk 0:02:55.7]} 4.
c3 {[%clk 0:03:01]} 4... Nc6 {[%clk 0:02:53.2]} 5. Nd2 {[%clk 0:03:01.1]} 5...
Qb6 {[%clk 0:02:46.9]} 6. Qb3 {[%clk 0:03:01]} 6... c4 {[%clk 0:02:47.1]} 7. Qc2
{[%clk 0:03:01.1]} 7... g6 {[%clk 0:02:40.8]} 8. e4 {[%clk 0:03:01.1]} 8... e5
{[%clk 0:02:36]} 9. dxe5 {[%clk 0:02:55.4]} 9... Nxe4 {[%clk 0:02:30.5]} 10.
Nxe4 {[%clk 0:02:55]} 10... dxe4 {[%clk 0:02:31.4]} 11. Bxc4 {[%clk 0:02:51.1]}
11... Bf5 {[%clk 0:02:23.1]} 12. Qb3 {[%clk 0:02:49.4]} 12... Qxb3 {[%clk
0:02:10.1]} 13. axb3 {[%clk 0:02:46.6]} 13... Bg7 {[%clk 0:02:06.1]} 14. e6
{[%clk 0:02:41.9]} 14... Bxe6 {[%clk 0:01:42.3]} 15. Bxe6 {[%clk 0:02:41.7]}
15... fxe6 {[%clk 0:01:43.2]} 16. O-O-O {[%clk 0:02:34.6]} 16... O-O {[%clk
0:01:40.9]} 17. Ne2 {[%clk 0:02:28.4]} 17... g5 {[%clk 0:01:32.5]} 18. Be3
{[%clk 0:02:10.6]} 18... Ne5 {[%clk 0:01:30.1]} 19. Ng3 {[%clk 0:01:58.6]} 19...
Nd3+ {[%clk 0:01:27.9]} 20. Kb1 {[%clk 0:01:58.1]} 20... Nxf2 {[%clk 0:00:53.5]}
21. Bxf2 {[%clk 0:01:57]} 21... Rxf2 {[%clk 0:00:54.4]} 22. Nxe4 {[%clk
0:01:57.6]} 22... Rxg2 {[%clk 0:00:55]} 23. Rdg1 {[%clk 0:01:53.8]} 23... Rxg1+
{[%clk 0:00:47.3]} 24. Rxg1 {[%clk 0:01:53.7]} 24... h6 {[%clk 0:00:47.8]} 25.
h4 {[%clk 0:01:52.2]} 25... gxh4 {[%clk 0:00:47.3]} 26. Rg4 {[%clk 0:01:47.3]}
26... h3 {[%clk 0:00:43.6]} 27. Rh4 {[%clk 0:01:46.1]} 27... Rf8 {[%clk
0:00:41.3]} 28. Rxh3 {[%clk 0:01:44.5]} 28... Rf4 {[%clk 0:00:41.4]} 29. Nd6
{[%clk 0:01:32]} 29... b6 {[%clk 0:00:29.5]} 30. Re3 {[%clk 0:01:24]} 30... e5
{[%clk 0:00:29.9]} 31. Nc8 {[%clk 0:01:17.5]} 31... Rf7 {[%clk 0:00:24.9]} 32.
Nd6 {[%clk 0:01:13.6]} 32... Rf1+ {[%clk 0:00:21]} 33. Kc2 {[%clk 0:01:13]}
33... Rf2+ {[%clk 0:00:21.2]} 34. Kb1 {[%clk 0:01:12.1]} 34... h5 {[%clk
0:00:18.5]} 35. Nc4 {[%clk 0:00:58.2]} 35... Rf5 {[%clk 0:00:12]} 36. Nd6 {[%clk
0:00:57.3]} 36... Rg5 {[%clk 0:00:10.9]} 37. Ne4 {[%clk 0:00:53.7]} 37... Rg4
{[%clk 0:00:11.3]} 38. Nf2 {[%clk 0:00:52]} 38... Rg1+ {[%clk 0:00:11.3]} 39.
Kc2 {[%clk 0:00:51.7]} 39... Rg2 {[%clk 0:00:11.8]} 40. Re2 {[%clk 0:00:48.6]}
40... h4 {[%clk 0:00:12.4]} 41. Kd3 {[%clk 0:00:46.1]} 41... h3 {[%clk
0:00:12.9]} 42. Nxh3 {[%clk 0:00:42.7]} 42... Rg3+ {[%clk 0:00:13.4]} 43. Re3
{[%clk 0:00:42]} 43... Rxe3+ {[%clk 0:00:14]} 44. Kxe3 {[%clk 0:00:42.2]} 44...
Kf7 {[%clk 0:00:14.9]} 45. Ke4 {[%clk 0:00:40]} 45... Bf6 {[%clk 0:00:11.8]} 46.
Nf2 {[%clk 0:00:36.2]} 46... Ke6 {[%clk 0:00:11.1]} 47. Nd3 {[%clk 0:00:35.7]}
47... a5 {[%clk 0:00:05.9]} 48. c4 {[%clk 0:00:33.2]} 48... Kd6 {[%clk 0:00:04]}
49. b4 {[%clk 0:00:32.4]} 49... a4 {[%clk 0:00:04.3]} 50. b5 {[%clk 0:00:30.8]}
50... Bg7 {[%clk 0:00:03.2]} 51. Ke3 {[%clk 0:00:17.4]} 51... Bh6+ {[%clk
0:00:03.2]} 52. Ke4 {[%clk 0:00:17.2]} 52... Bf4 {[%clk 0:00:03]} 53. Nb4 {[%clk
0:00:13.4]} 53... Kc5 {[%clk 0:00:03.2]} 54. Kd3 {[%clk 0:00:05.5]} 54... Kxb4
{[%clk 0:00:03]} 55. c5 {[%clk 0:00:03.5]} 55... Kxc5 {[%clk 0:00:03.1]} 0-1

[Event "Late-Titled-Tuesday-Blitz-April-23-2024"]
[Site "Chess.com"]
[Date "2024.04.23"]
[Round "4"]
[White "Hikaru"]
[Black "TenisMaster"]
[Result "1-0"]
[WhiteElo "3314"]
[BlackElo "2963"]
[TimeControl "180+1"]
[EndTime "14:41:28 PDT"]
[Termination "Hikaru won on time"]

1. h4 {[%clk 0:03:00.9]} 1... d5 {[%clk 0:02:59.3]} 2. c4 {[%clk 0:02:59]} 2...
c6 {[%clk 0:02:59.2]} 3. d4 {[%clk 0:02:57.2]} 3... Nf6 {[%clk 0:02:59.1]} 4.
cxd5 {[%clk 0:02:57.4]} 4... cxd5 {[%clk 0:02:59.2]} 5. Bf4 {[%clk 0:02:57]}
5... Nc6 {[%clk 0:02:59]} 6. e3 {[%clk 0:02:57.3]} 6... Bf5 {[%clk 0:02:58.7]}
7. Nc3 {[%clk 0:02:57]} 7... e6 {[%clk 0:02:58.2]} 8. f3 {[%clk 0:02:57.5]} 8...
h6 {[%clk 0:02:47.7]} 9. g4 {[%clk 0:02:57.2]} 9... Bg6 {[%clk 0:02:45]} 10. Bd3
{[%clk 0:02:53.5]} 10... Bxd3 {[%clk 0:02:41.7]} 11. Qxd3 {[%clk 0:02:54.4]}
11... Bd6 {[%clk 0:02:40.5]} 12. Nge2 {[%clk 0:02:53.8]} 12... Rc8 {[%clk
0:02:35.4]} 13. Kf2 {[%clk 0:02:52.4]} 13... a6 {[%clk 0:02:26]} 14. Rad1 {[%clk
0:02:49.5]} 14... Bxf4 {[%clk 0:02:21.8]} 15. exf4 {[%clk 0:02:49]} 15... Qd6
{[%clk 0:02:22.5]} 16. h5 {[%clk 0:02:47.8]} 16... Na5 {[%clk 0:02:17.1]} 17. b3
{[%clk 0:02:47.6]} 17... Nc6 {[%clk 0:02:16.3]} 18. Qe3 {[%clk 0:02:47.7]} 18...
Ne7 {[%clk 0:02:02.2]} 19. Ng3 {[%clk 0:02:32.4]} 19... O-O {[%clk 0:01:56.4]}
20. Rc1 {[%clk 0:02:27.9]} 20... Rc6 {[%clk 0:01:53.9]} 21. g5 {[%clk
0:02:27.7]} 21... Nh7 {[%clk 0:01:34.1]} 22. Nce2 {[%clk 0:02:19.8]} 22... Rfc8
{[%clk 0:01:31.4]} 23. Rxc6 {[%clk 0:02:19.6]} 23... Rxc6 {[%clk 0:01:32.3]} 24.
gxh6 {[%clk 0:02:18.7]} 24... gxh6 {[%clk 0:01:31.9]} 25. f5 {[%clk 0:02:19.2]}
25... Ng5 {[%clk 0:01:30.1]} 26. f6 {[%clk 0:01:13]} 26... Nc8 {[%clk
0:01:20.5]} 27. Qe5 {[%clk 0:00:50.1]} 27... Rc2 {[%clk 0:01:09.3]} 28. f4
{[%clk 0:00:50.4]} 28... Nh7 {[%clk 0:01:02]} 29. f5 {[%clk 0:00:44.9]} 29...
Ng5 {[%clk 0:00:58.7]} 30. Rc1 {[%clk 0:00:42.7]} 30... Rxc1 {[%clk 0:00:48.1]}
31. Nxc1 {[%clk 0:00:43.6]} 31... Qc6 {[%clk 0:00:45.1]} 32. Nd3 {[%clk
0:00:43.1]} 32... Nd6 {[%clk 0:00:43.5]} 33. fxe6 {[%clk 0:00:43.3]} 33... fxe6
{[%clk 0:00:44]} 34. Qe2 {[%clk 0:00:41.7]} 34... Qc3 {[%clk 0:00:39.6]} 35. Qe3
{[%clk 0:00:33.3]} 35... Qc2+ {[%clk 0:00:36.5]} 36. Kf1 {[%clk 0:00:30.6]}
36... Qd1+ {[%clk 0:00:34.6]} 37. Kg2 {[%clk 0:00:30]} 37... Qg4 {[%clk
0:00:28.8]} 38. Nf2 {[%clk 0:00:16.3]} 38... Qh4 {[%clk 0:00:24]} 39. Qe5 {[%clk
0:00:16.6]} 39... Ne8 {[%clk 0:00:16.8]} 40. Qb8 {[%clk 0:00:15.5]} 40... Kf7
{[%clk 0:00:15.3]} 41. Qxb7+ {[%clk 0:00:16.2]} 41... Kxf6 {[%clk 0:00:15.5]}
42. Qa8 {[%clk 0:00:11]} 42... Kf7 {[%clk 0:00:13.8]} 43. Qa7+ {[%clk
0:00:10.2]} 43... Kf6 {[%clk 0:00:14]} 44. Qb8 {[%clk 0:00:10.5]} 44... Kf7
{[%clk 0:00:11.5]} 45. Qb7+ {[%clk 0:00:09.1]} 45... Kf6 {[%clk 0:00:11.6]} 46.
Qxa6 {[%clk 0:00:10]} 46... Qxd4 {[%clk 0:00:11]} 47. Qa8 {[%clk 0:00:10.5]}
47... Kf7 {[%clk 0:00:09.7]} 48. Qb7+ {[%clk 0:00:11.1]} 48... Kf6 {[%clk
0:00:09]} 49. Qb8 {[%clk 0:00:11.8]} 49... Kf7 {[%clk 0:00:08.7]} 50. a4 {[%clk
0:00:11.9]} 50... Nf6 {[%clk 0:00:06.7]} 51. Qc7+ {[%clk 0:00:12.1]} 51... Kf8
{[%clk 0:00:06.6]} 52. Qc8+ {[%clk 0:00:12.5]} 52... Kf7 {[%clk 0:00:06.9]} 53.
Qc7+ {[%clk 0:00:13]} 53... Kf8 {[%clk 0:00:07.2]} 54. Qc8+ {[%clk 0:00:13.8]}
54... Kf7 {[%clk 0:00:07.3]} 55. Qc2 {[%clk 0:00:14.7]} 55... Nfe4 {[%clk
0:00:06.8]} 56. Nfxe4 {[%clk 0:00:14.9]} 56... dxe4 {[%clk 0:00:06.3]} 57. Qf2+
{[%clk 0:00:15.3]} 57... Nf3 {[%clk 0:00:03]} 58. Qxd4 {[%clk 0:00:12.5]} 58...
Nxd4 {[%clk 0:00:03.9]} 59. a5 {[%clk 0:00:12.9]} 59... e3 {[%clk 0:00:04.6]}
60. a6 {[%clk 0:00:13.4]} 60... Nb5 {[%clk 0:00:03.2]} 61. Kf3 {[%clk
0:00:13.2]} 61... Ke7 {[%clk 0:00:03.3]} 62. Ne4 {[%clk 0:00:13.6]} 62... Kd7
{[%clk 0:00:03.1]} 63. Nf6+ {[%clk 0:00:13.5]} 63... Kc6 {[%clk 0:00:03.4]} 64.
Ng4 {[%clk 0:00:14.2]} 64... Kb6 {[%clk 0:00:03.2]} 65. Nxh6 {[%clk 0:00:14.1]}
65... Nd4+ {[%clk 0:00:02.7]} 66. Kxe3 {[%clk 0:00:14.7]} 66... Nxb3 {[%clk
0:00:02.8]} 67. Ng8 {[%clk 0:00:11.7]} 67... Nc5 {[%clk 0:00:02.6]} 68. h6
{[%clk 0:00:12.2]} 1-0

[Event "Late-Titled-Tuesday-Blitz-April-23-2024"]
[Site "Chess.com"]
[Date "2024.04.23"]
[Round "4"]
[White "GMKrikor"]
[Black "TangerineandLemon25"]
[Result "1-0"]
[WhiteElo "2895"]
[BlackElo "2635"]
[TimeControl "180+1"]
[EndTime "14:41:28 PDT"]
[Termination "GMKrikor won by resignation"]

1. Nf3 {[%clk 0:03:00.9]} 1... d5 {[%clk 0:02:21.4]} 2. c4 {[%clk 0:03:00.4]}
2... e6 {[%clk 0:02:18.4]} 3. d4 {[%clk 0:03:00.2]} 3... a6 {[%clk 0:02:18.7]}
4. Nc3 {[%clk 0:02:32.5]} 4... dxc4 {[%clk 0:02:18.6]} 5. e4 {[%clk 0:02:32.6]}
5... b5 {[%clk 0:02:18.1]} 6. a4 {[%clk 0:02:33.3]} 6... b4 {[%clk 0:02:03.7]}
7. Ne2 {[%clk 0:02:29.9]} 7... c5 {[%clk 0:02:01.3]} 8. Ng3 {[%clk 0:02:21.4]}
8... Qc7 {[%clk 0:01:51.3]} 9. d5 {[%clk 0:02:16]} 9... Nf6 {[%clk 0:01:50.8]}
10. Bxc4 {[%clk 0:02:06.8]} 10... exd5 {[%clk 0:01:50.4]} 11. exd5 {[%clk
0:01:59.8]} 11... Bd6 {[%clk 0:01:50.3]} 12. O-O {[%clk 0:01:53.7]} 12... O-O
{[%clk 0:01:50.4]} 13. Bg5 {[%clk 0:01:53.9]} 13... Nbd7 {[%clk 0:01:50.9]} 14.
Nf5 {[%clk 0:01:45.6]} 14... h6 {[%clk 0:01:47.7]} 15. Bh4 {[%clk 0:01:41.7]}
15... Bb7 {[%clk 0:01:44.2]} 16. Nxd6 {[%clk 0:01:28]} 16... Qxd6 {[%clk
0:01:45.1]} 17. Bg3 {[%clk 0:01:28.5]} 17... Qb6 {[%clk 0:01:39]} 18. a5 {[%clk
0:01:28.7]} 18... Qd8 {[%clk 0:01:38.1]} 19. Qd3 {[%clk 0:01:18.6]} 19... Nh5
{[%clk 0:01:35.8]} 20. Bh4 {[%clk 0:01:02.5]} 20... g5 {[%clk 0:01:33.6]} 21.
Bg3 {[%clk 0:00:59.1]} 21... Qf6 {[%clk 0:01:34.2]} 22. Rfe1 {[%clk 0:00:55.5]}
22... Rae8 {[%clk 0:01:30]} 23. b3 {[%clk 0:00:51.6]} 23... Nxg3 {[%clk
0:01:08.8]} 24. hxg3 {[%clk 0:00:51]} 24... Qd6 {[%clk 0:01:07.8]} 25. Rad1
{[%clk 0:00:33.6]} 25... Kg7 {[%clk 0:01:06.1]} 26. Nd2 {[%clk 0:00:29.3]} 26...
Nf6 {[%clk 0:00:59]} 27. Ne4 {[%clk 0:00:24.4]} 27... Nxe4 {[%clk 0:00:54.5]}
28. Rxe4 {[%clk 0:00:25.3]} 28... Bc8 {[%clk 0:00:54.6]} 29. Qe3 {[%clk
0:00:14.9]} 29... Bd7 {[%clk 0:00:45.9]} 30. Rxe8 {[%clk 0:00:12.9]} 30... Rxe8
{[%clk 0:00:46.8]} 31. Qd3 {[%clk 0:00:13.5]} 31... Bc8 {[%clk 0:00:45.6]} 32.
Kf1 {[%clk 0:00:10]} 32... f5 {[%clk 0:00:32.1]} 33. Rc1 {[%clk 0:00:09.3]}
33... Kf6 {[%clk 0:00:28.4]} 34. Qd2 {[%clk 0:00:09.3]} 34... Bb7 {[%clk
0:00:25.2]} 35. Re1 {[%clk 0:00:04.4]} 35... Rxe1+ {[%clk 0:00:19.5]} 36. Qxe1
{[%clk 0:00:03.5]} 36... Qe5 {[%clk 0:00:19.9]} 37. Qd2 {[%clk 0:00:03.7]} 37...
Ke7 {[%clk 0:00:16.7]} 38. f4 {[%clk 0:00:03]} 38... gxf4 {[%clk 0:00:16.8]} 39.
gxf4 {[%clk 0:00:03.7]} 39... Qa1+ {[%clk 0:00:16.1]} 40. Kf2 {[%clk 0:00:03.8]}
40... Qd4+ {[%clk 0:00:15.1]} 41. Qxd4 {[%clk 0:00:03.7]} 41... cxd4 {[%clk
0:00:16]} 42. Ke2 {[%clk 0:00:04]} 42... Kd6 {[%clk 0:00:16.6]} 43. Kd3 {[%clk
0:00:03.8]} 43... Bxd5 {[%clk 0:00:09.4]} 44. Kxd4 {[%clk 0:00:04.4]} 44... Bxg2
{[%clk 0:00:08.6]} 45. Bxa6 {[%clk 0:00:04.6]} 45... h5 {[%clk 0:00:09.3]} 46.
Bd3 {[%clk 0:00:03.3]} 46... Ke6 {[%clk 0:00:08.4]} 47. a6 {[%clk 0:00:03]}
47... h4 {[%clk 0:00:08.2]} 48. a7 {[%clk 0:00:02.5]} 48... h3 {[%clk
0:00:08.6]} 49. Bf1 {[%clk 0:00:03.2]} 49... Kf6 {[%clk 0:00:06.4]} 50. Ke3
{[%clk 0:00:03.1]} 50... Bd5 {[%clk 0:00:02.1]} 51. Bxh3 {[%clk 0:00:02.9]}
51... Ke6 {[%clk 0:00:03]} 52. Bf1 {[%clk 0:00:01.9]} 52... Kd6 {[%clk
0:00:03.2]} 53. Bc4 {[%clk 0:00:02.5]} 53... Bg2 {[%clk 0:00:03.4]} 54. Kd4
{[%clk 0:00:02.6]} 54... Kc6 {[%clk 0:00:03.8]} 55. a8=Q+ {[%clk 0:00:02.2]} 1-0

[Event "Late-Titled-Tuesday-Blitz-April-23-2024"]
[Site "Chess.com"]
[Date "2024.04.23"]
[Round "4"]
[White "Korchmar_Vasiliy"]
[Black "PositionalPanther"]
[Result "1-0"]
[WhiteElo "2710"]
[BlackElo "2531"]
[TimeControl "180+1"]
[EndTime "14:41:31 PDT"]
[Termination "Korchmar_Vasiliy won by checkmate"]

1. d4 {[%clk 0:03:00.9]} 1... d5 {[%clk 0:02:59.8]} 2. c4 {[%clk 0:03:01]} 2...
e6 {[%clk 0:03:00.2]} 3. Nf3 {[%clk 0:03:00.7]} 3... a6 {[%clk 0:03:00.6]} 4. g3
{[%clk 0:02:56.7]} 4... dxc4 {[%clk 0:02:55.7]} 5. Bg2 {[%clk 0:02:56.7]} 5...
Nc6 {[%clk 0:02:56.3]} 6. O-O {[%clk 0:02:55.6]} 6... Rb8 {[%clk 0:02:56.7]} 7.
e4 {[%clk 0:02:46.5]} 7... Nf6 {[%clk 0:02:49.4]} 8. Nc3 {[%clk 0:02:46.4]} 8...
Be7 {[%clk 0:02:36]} 9. d5 {[%clk 0:02:43.2]} 9... Nb4 {[%clk 0:02:32.6]} 10.
Ne5 {[%clk 0:02:28.4]} 10... Nd3 {[%clk 0:02:01.9]} 11. Nxc4 {[%clk 0:02:18.1]}
11... Nxc1 {[%clk 0:02:00.6]} 12. Rxc1 {[%clk 0:02:19]} 12... exd5 {[%clk
0:01:58]} 13. exd5 {[%clk 0:02:15.8]} 13... O-O {[%clk 0:01:56]} 14. Qd3 {[%clk
0:01:56.5]} 14... Bd6 {[%clk 0:01:50.1]} 15. h3 {[%clk 0:01:52.4]} 15... g6
{[%clk 0:01:46.5]} 16. g4 {[%clk 0:01:48.4]} 16... Re8 {[%clk 0:01:24.5]} 17. f4
{[%clk 0:01:23.6]} 17... Bc5+ {[%clk 0:01:15.1]} 18. Kh1 {[%clk 0:01:23.8]}
18... Bd7 {[%clk 0:01:14.5]} 19. Ne5 {[%clk 0:01:10.9]} 19... Bd6 {[%clk
0:01:05.1]} 20. Rce1 {[%clk 0:01:09.9]} 20... Bf8 {[%clk 0:00:45.4]} 21. Bf3
{[%clk 0:00:47.7]} 21... Bg7 {[%clk 0:00:39.8]} 22. g5 {[%clk 0:00:47.4]} 22...
Bf5 {[%clk 0:00:40]} 23. Qd2 {[%clk 0:00:40.9]} 23... Nd7 {[%clk 0:00:39.6]} 24.
Ng4 {[%clk 0:00:40.2]} 24... Rxe1 {[%clk 0:00:32.9]} 25. Rxe1 {[%clk 0:00:41.1]}
25... Qf8 {[%clk 0:00:32.3]} 26. Qe3 {[%clk 0:00:35.8]} 26... Qc5 {[%clk
0:00:28.4]} 27. Qxc5 {[%clk 0:00:32.6]} 27... Nxc5 {[%clk 0:00:29.3]} 28. Re7
{[%clk 0:00:32.9]} 28... Nd7 {[%clk 0:00:24.4]} 29. Kg2 {[%clk 0:00:23.5]} 29...
Rd8 {[%clk 0:00:21.9]} 30. Ne3 {[%clk 0:00:22.1]} 30... Bd3 {[%clk 0:00:18]} 31.
Bg4 {[%clk 0:00:17.7]} 31... Bxc3 {[%clk 0:00:16.7]} 32. bxc3 {[%clk 0:00:17.1]}
32... Bb5 {[%clk 0:00:17.3]} 33. c4 {[%clk 0:00:10.5]} 33... Ba4 {[%clk
0:00:17.3]} 34. f5 {[%clk 0:00:07.8]} 34... Kf8 {[%clk 0:00:14.4]} 35. f6 {[%clk
0:00:08.3]} 35... Re8 {[%clk 0:00:14.8]} 36. Bxd7 {[%clk 0:00:05.9]} 36... Bxd7
{[%clk 0:00:10.3]} 37. Rxd7 {[%clk 0:00:06.8]} 37... Rxe3 {[%clk 0:00:09.7]} 38.
Rxc7 {[%clk 0:00:07.5]} 38... Ke8 {[%clk 0:00:08.7]} 39. Rxb7 {[%clk 0:00:07.3]}
39... Re2+ {[%clk 0:00:09.1]} 40. Kf3 {[%clk 0:00:07.2]} 40... Rxa2 {[%clk
0:00:10]} 41. c5 {[%clk 0:00:07.1]} 41... Rd2 {[%clk 0:00:08.7]} 42. Ke4 {[%clk
0:00:07.2]} 42... a5 {[%clk 0:00:08.2]} 43. Ra7 {[%clk 0:00:07.7]} 43... Re2+
{[%clk 0:00:07.4]} 44. Kd4 {[%clk 0:00:07.7]} 44... Rd2+ {[%clk 0:00:07.6]} 45.
Ke5 {[%clk 0:00:08.2]} 45... Re2+ {[%clk 0:00:06.1]} 46. Kd6 {[%clk 0:00:08.8]}
46... Kf8 {[%clk 0:00:05]} 47. Rxa5 {[%clk 0:00:05.9]} 47... Re8 {[%clk
0:00:05.6]} 48. Ra7 {[%clk 0:00:05.9]} 48... h6 {[%clk 0:00:05.1]} 49. h4 {[%clk
0:00:05.9]} 49... h5 {[%clk 0:00:05.2]} 50. c6 {[%clk 0:00:05.7]} 50... Kg8
{[%clk 0:00:05.8]} 51. Rb7 {[%clk 0:00:04.1]} 51... Rd8+ {[%clk 0:00:04.8]} 52.
Kc5 {[%clk 0:00:04.2]} 52... Rc8 {[%clk 0:00:04.7]} 53. c7 {[%clk 0:00:04.2]}
53... Kh7 {[%clk 0:00:05.2]} 54. d6 {[%clk 0:00:04.7]} 54... Re8 {[%clk
0:00:05.1]} 55. Kc6 {[%clk 0:00:03.9]} 55... Rf8 {[%clk 0:00:05.3]} 56. Rb3
{[%clk 0:00:03.8]} 56... Rc8 {[%clk 0:00:04.6]} 57. Re3 {[%clk 0:00:04.2]} 57...
Re8 {[%clk 0:00:04.5]} 58. Re7 {[%clk 0:00:03.8]} 58... Kg8 {[%clk 0:00:01.4]}
59. Rxe8+ {[%clk 0:00:03.8]} 59... Kh7 {[%clk 0:00:02.3]} 60. Re7 {[%clk
0:00:04.3]} 60... Kg8 {[%clk 0:00:02.7]} 61. c8=Q+ {[%clk 0:00:04.8]} 61... Kh7
{[%clk 0:00:03.6]} 62. Rxf7# {[%clk 0:00:05.2]} 1-0

[Event "Late-Titled-Tuesday-Blitz-April-23-2024"]
[Site "Chess.com"]
[Date "2024.04.23"]
[Round "4"]
[White "Rud_Makarian"]
[Black "alexrustemov"]
[Result "1/2-1/2"]
[WhiteElo "3050"]
[BlackElo "2849"]
[TimeControl "180+1"]
[EndTime "14:41:32 PDT"]
[Termination "Game drawn by repetition"]

1. d4 {[%clk 0:03:00.9]} 1... d5 {[%clk 0:02:59.3]} 2. c4 {[%clk 0:03:01.5]}
2... c6 {[%clk 0:02:59.5]} 3. Nf3 {[%clk 0:03:02.1]} 3... Nf6 {[%clk 0:02:59.3]}
4. Nc3 {[%clk 0:03:02.7]} 4... dxc4 {[%clk 0:02:59.7]} 5. e4 {[%clk 0:03:01.3]}
5... b5 {[%clk 0:02:57.7]} 6. Be2 {[%clk 0:03:01.5]} 6... e6 {[%clk 0:02:56.7]}
7. a4 {[%clk 0:02:59.4]} 7... Bb7 {[%clk 0:02:52.4]} 8. axb5 {[%clk 0:02:54.9]}
8... cxb5 {[%clk 0:02:51.4]} 9. e5 {[%clk 0:02:55.3]} 9... Nd5 {[%clk
0:02:48.8]} 10. Nxb5 {[%clk 0:02:55.1]} 10... Nb6 {[%clk 0:02:02.8]} 11. O-O
{[%clk 0:02:54.2]} 11... Qd7 {[%clk 0:01:58.9]} 12. Na3 {[%clk 0:02:40.3]} 12...
Bxa3 {[%clk 0:01:52.7]} 13. Rxa3 {[%clk 0:02:41.2]} 13... Nc6 {[%clk 0:01:52.9]}
14. Be3 {[%clk 0:02:36.5]} 14... Ne7 {[%clk 0:01:43.6]} 15. Nd2 {[%clk 0:02:26]}
15... O-O {[%clk 0:01:38.9]} 16. Bf3 {[%clk 0:01:55.6]} 16... Bxf3 {[%clk
0:01:35.8]} 17. Qxf3 {[%clk 0:01:56.5]} 17... Nf5 {[%clk 0:01:22.6]} 18. Ne4
{[%clk 0:01:55.7]} 18... Rab8 {[%clk 0:01:09.9]} 19. Rd1 {[%clk 0:01:39.2]}
19... Nd5 {[%clk 0:01:09.3]} 20. Bc1 {[%clk 0:01:38.9]} 20... Rb3 {[%clk
0:01:03]} 21. Rxb3 {[%clk 0:01:37.4]} 21... cxb3 {[%clk 0:01:03.9]} 22. Qxb3
{[%clk 0:01:36.7]} 22... Rc8 {[%clk 0:00:56.8]} 23. h3 {[%clk 0:01:28.1]} 23...
h6 {[%clk 0:00:56.4]} 24. Qd3 {[%clk 0:01:18.7]} 24... Qc6 {[%clk 0:00:56]} 25.
Bd2 {[%clk 0:01:15.4]} 25... Qa4 {[%clk 0:00:50.7]} 26. Bc3 {[%clk 0:01:06.3]}
26... a5 {[%clk 0:00:47.7]} 27. Kh2 {[%clk 0:01:01.5]} 27... Rb8 {[%clk
0:00:42.3]} 28. Nc5 {[%clk 0:00:58.2]} 28... Qb5 {[%clk 0:00:40.9]} 29. Qxb5
{[%clk 0:00:57.3]} 29... Rxb5 {[%clk 0:00:41.8]} 30. Ra1 {[%clk 0:00:57.6]}
30... Nb4 {[%clk 0:00:34.1]} 31. g4 {[%clk 0:00:51]} 31... Ne7 {[%clk
0:00:33.4]} 32. Kg3 {[%clk 0:00:48.3]} 32... Nec6 {[%clk 0:00:31.4]} 33. Ra4
{[%clk 0:00:46]} 33... Nc2 {[%clk 0:00:26.8]} 34. h4 {[%clk 0:00:39.7]} 34...
N2xd4 {[%clk 0:00:26.4]} 35. Bxd4 {[%clk 0:00:23.7]} 35... Nxd4 {[%clk
0:00:27.3]} 36. Rxd4 {[%clk 0:00:20.7]} 36... Rxc5 {[%clk 0:00:27.3]} 37. f4
{[%clk 0:00:20.7]} 37... g5 {[%clk 0:00:25.9]} 38. hxg5 {[%clk 0:00:16.1]} 38...
hxg5 {[%clk 0:00:26.8]} 39. fxg5 {[%clk 0:00:16.4]} 39... Rxe5 {[%clk
0:00:26.2]} 40. Kh4 {[%clk 0:00:16.6]} 40... Kg7 {[%clk 0:00:24.4]} 41. Rd8
{[%clk 0:00:16.7]} 41... Rb5 {[%clk 0:00:23.4]} 42. Ra8 {[%clk 0:00:16.9]} 42...
Kg6 {[%clk 0:00:21.2]} 43. Rg8+ {[%clk 0:00:16.6]} 43... Kh7 {[%clk 0:00:21.4]}
44. Ra8 {[%clk 0:00:16.9]} 44... Kg7 {[%clk 0:00:21.1]} 45. Ra7 {[%clk 0:00:11]}
45... Kg6 {[%clk 0:00:20.5]} 46. Ra8 {[%clk 0:00:11.7]} 46... Rxb2 {[%clk
0:00:19.3]} 47. Rxa5 {[%clk 0:00:10.2]} 47... Rh2+ {[%clk 0:00:18.2]} 48. Kg3
{[%clk 0:00:10.1]} 48... Rh1 {[%clk 0:00:18.5]} 49. Kf4 {[%clk 0:00:09.7]} 49...
Rf1+ {[%clk 0:00:16.8]} 50. Kg3 {[%clk 0:00:10.2]} 50... Rd1 {[%clk 0:00:17.2]}
51. Kf4 {[%clk 0:00:10.2]} 51... Rd4+ {[%clk 0:00:15.4]} 52. Kf3 {[%clk
0:00:09.8]} 52... Rd5 {[%clk 0:00:15.3]} 53. Ra8 {[%clk 0:00:06.9]} 53... Rxg5
{[%clk 0:00:14.6]} 54. Kf4 {[%clk 0:00:06.2]} 54... Rd5 {[%clk 0:00:14.4]} 55.
Rg8+ {[%clk 0:00:06.4]} 55... Kf6 {[%clk 0:00:14.3]} 56. g5+ {[%clk 0:00:06.5]}
56... Ke7 {[%clk 0:00:14.5]} 57. g6 {[%clk 0:00:05.7]} 57... f6 {[%clk 0:00:09]}
58. Rg7+ {[%clk 0:00:05.3]} 58... Kd6 {[%clk 0:00:07.1]} 59. Rf7 {[%clk
0:00:04.7]} 59... Rf5+ {[%clk 0:00:07.1]} 60. Ke4 {[%clk 0:00:04.4]} 60... Re5+
{[%clk 0:00:05.8]} 61. Kf4 {[%clk 0:00:04.3]} 61... Rf5+ {[%clk 0:00:06.2]} 62.
Ke4 {[%clk 0:00:05]} 62... Re5+ {[%clk 0:00:06.3]} 63. Kf4 {[%clk 0:00:05.5]}
63... Rf5+ {[%clk 0:00:06.3]} 1/2-1/2